bitfinex-derivatives/quotes_BNBF0:USTF0_20241225
["timestamp","ask_amount","ask_price","bid_price","bid_amount"]
[1735149274820,0.28548997,700.55,699.16,2.84387421]
[1735149275018,0.28548997,700.55,699.17,2.57196216]
[1735149275217,0.28548997,700.55,699.18,2.84387421]
[1735149275723,0.28548997,700.55,699.19,2.57196216]
[1735149275918,0.28548997,700.55,699.2,2.84387421]
[1735149276118,0.28548997,700.55,699.21,2.57196216]
[1735149276324,0.28548997,700.55,699.22,2.84387421]
[1735149276619,0.28548997,700.55,699.23,2.57196216]
[1735149277119,0.28548997,700.55,699.15,0.28606164]
[1735149292833,0.28548997,700.55,699.15,3.12707831]
[1735149293037,0.28548997,700.55,699.16,2.579043]
[1735149293234,0.28548997,700.55,699.17,3.12707013]
[1735149293439,0.28548997,700.55,699.18,0.28604937]
[1735149293635,0.28548997,700.55,699.18,4.21973209]
[1735149293839,0.28548997,700.55,699.18,2.86509237]
[1735149294039,0.28548997,700.55,699.19,2.83771916]
[1735149294339,0.28548997,700.55,699.2,2.579043]
[1735149294536,0.28548997,700.55,699.21,3.12375625]
[1735149294735,0.28548997,700.55,699.22,2.865076]
[1735149294941,0.28548997,700.55,699.23,0.28602891]
[1735149313855,1.06594966,701.25,699.23,0.28602891]
[1735149314058,0.28521312,701.23,699.23,0.28602891]
[1735149314255,0.26250905,701.22,699.23,0.28602891]
[1735149315458,0.2625281,701.21,699.23,0.28602891]
[1735149315658,0.2625281,701.2,699.23,0.28602891]
[1735149315958,0.2625281,701.19,699.23,0.28602891]
[1735149316160,0.26251951,701.18,699.23,0.28602891]
[1735149316359,0.26251951,701.17,699.23,0.28602891]
[1735149316559,0.26251951,701.16,699.23,0.28602891]
[1735149316760,0.26251951,701.15,699.23,0.28602891]
[1735149317054,0.28521312,701.23,699.23,0.28602891]
[1735149317253,0.26250399,701.22,699.23,0.28602891]
[1735149318160,0.28521312,701.23,699.23,0.28602891]
[1735149318360,0.2625072,701.22,699.23,0.28602891]
[1735149320861,0.28522532,701.2,699.23,0.28602891]
[1735149321063,0.26251338,701.19,699.23,0.28602891]
[1735149321863,0.26251338,701.19,699.41,1.27435555]
[1735149322359,0.26251338,701.19,699.42,0.28595121]
[1735149324064,1.35118719,701.17,699.42,0.28595121]
[1735149324265,0.26251338,701.16,699.42,0.28595121]
[1735149324460,1.35118719,701.17,699.42,0.28595121]
[1735149324666,0.2625479,701.16,699.42,0.28595121]
[1735149324866,0.28524566,701.15,699.42,0.28595121]
[1735149325165,0.2625479,701.14,699.42,0.28595121]
[1735149326762,0.28525787,701.12,699.42,0.28595121]
[1735149326962,0.2625479,701.11,699.42,0.28595121]
[1735149327365,0.28527007,701.09,699.42,0.28595121]
[1735149327566,0.2625479,701.08,699.42,0.28595121]
[1735149328067,0.28527821,701.07,699.42,0.28595121]
[1735149329870,0.26251648,701.06,699.42,0.28595121]
[1735149330165,0.28528635,701.05,699.42,0.28595121]
[1735149332565,0.26251826,701.04,699.42,0.28595121]
[1735149332771,0.28528635,701.05,699.42,0.28595121]
[1735149333266,0.26251141,701.04,699.42,0.28595121]
[1735149333471,0.28528635,701.05,699.42,0.28595121]
[1735149343581,0.2625253,701.04,699.42,0.28595121]
[1735149344179,0.28529856,701.02,699.42,0.28595121]
[1735149344583,0.26254995,701.01,699.42,0.28595121]
[1735149345176,0.2853067,701.0,699.42,0.28595121]
[1735149345581,0.26254033,700.99,699.42,0.28595121]
[1735149346082,0.28531484,700.98,699.42,0.28595121]
[1735149346280,0.26254033,700.97,699.42,0.28595121]
[1735149346582,0.28532298,700.96,699.42,0.28595121]
[1735149346781,0.26254033,700.95,699.42,0.28595121]
[1735149346978,0.28533112,700.94,699.42,0.28595121]
[1735149347181,0.26254033,700.93,699.42,0.28595121]
[1735149347381,0.28533926,700.92,699.42,0.28595121]
[1735149364391,0.26255105,700.91,699.42,0.28595121]
[1735149364591,0.28534741,700.9,699.42,0.28595121]
[1735149367093,0.26255683,700.89,699.42,0.28595121]
[1735149367493,0.28535555,700.88,699.42,0.28595121]
[1735149368594,0.26258602,700.87,699.42,0.28595121]
[1735149368795,0.28536369,700.86,699.42,0.28595121]
[1735149371499,0.26254854,700.85,699.42,0.28595121]
[1735149372498,0.28536369,700.86,699.42,0.28595121]
[1735149373101,0.26254846,700.85,699.42,0.28595121]
[1735149373294,0.28536369,700.86,699.42,0.28595121]
[1735149376204,0.26254995,700.85,699.42,0.28595121]
[1735149376400,0.28536369,700.86,699.42,0.28595121]
[1735149376801,0.26254882,700.85,699.42,0.28595121]
[1735149377198,0.28536369,700.86,699.42,0.28595121]
[1735149377400,0.28536369,700.86,699.42,3.12133001]
[1735149377597,0.28536369,700.86,699.42,2.85998004]
[1735149377802,0.28536369,700.86,699.42,0.28595121]
[1735149392709,0.27690618,700.86,699.42,0.28595121]
[1735149392911,0.26258988,700.85,699.42,0.28595121]
[1735149393110,0.28537183,700.84,699.42,0.28595121]
[1735149393311,0.26258988,700.83,699.42,0.28595121]
[1735149393513,0.28537998,700.82,699.42,0.28595121]
[1735149402514,0.26257021,700.81,699.42,0.28595121]
[1735149402718,0.28538812,700.8,699.42,0.28595121]
[1735149406622,0.26257414,700.79,699.42,0.28595121]
[1735149406823,0.54796634,700.79,699.42,0.28595121]
[1735149407019,0.2853922,700.79,699.42,0.28595121]
[1735149441756,0.2853922,700.79,699.42,0.27830326]
[1735149462270,0.2853922,700.79,699.45,1.27435555]
[1735149463970,0.2853922,700.79,699.42,0.27830326]
[1735149488696,0.26260382,700.78,699.42,0.27830326]
[1735149488894,0.28540034,700.77,699.42,0.27830326]
[1735149489090,0.26260402,700.76,699.42,0.27830326]
[1735149489296,0.28540849,700.75,699.42,0.27830326]
[1735149489494,0.26260402,700.74,699.42,0.27830326]
[1735149489695,0.28541663,700.73,699.42,0.27830326]
[1735149489892,0.26260419,700.72,699.42,0.27830326]
[1735149490092,0.28542478,700.71,699.42,0.27830326]
[1735149493394,0.26261277,700.7,699.42,0.27830326]
[1735149493695,0.28543293,700.69,699.42,0.27830326]
[1735149585067,0.28543293,700.69,699.45,1.27435555]
[1735149585268,0.28543293,700.69,699.45,1.5602945]
[1735149585770,0.28543293,700.69,699.52,1.27435555]
[1735149586868,0.28543293,700.69,699.53,1.27435555]
[1735149587665,0.28543293,700.69,699.54,1.27435555]
[1735149588268,0.28543293,700.69,699.45,0.28593895]
[1735149688546,0.28543293,700.69,698.7,1.27435555]
[1735149688742,0.28543293,700.69,698.72,0.28623769]
[1735149693953,0.26266794,700.68,698.72,0.28623769]
[1735149695254,0.28543293,700.69,698.72,0.28623769]
[1735149696159,0.26266133,700.68,698.72,0.28623769]
[1735149696550,0.26265811,700.67,698.72,0.28623769]
[1735149696755,0.26265811,700.66,698.72,0.28623769]
[1735149696954,0.26265811,700.65,698.72,0.28623769]
[1735149697156,0.26265811,700.64,698.72,0.28623769]
[1735149697352,0.26265811,700.63,698.72,0.28623769]
[1735149697550,0.28543293,700.69,698.72,0.28623769]
[1735149697755,0.26266103,700.68,698.72,0.28623769]
[1735149697956,0.26266082,700.67,698.72,0.28623769]
[1735149698156,0.26266082,700.66,698.72,0.28623769]
[1735149698356,0.26266082,700.65,698.72,0.28623769]
[1735149698557,0.26266082,700.64,698.72,0.28623769]
[1735149698858,0.28543293,700.69,698.72,0.28623769]
[1735149699055,0.26265546,700.68,698.72,0.28623769]
[1735149699753,0.26265546,700.68,698.75,1.27435555]
[1735149700757,0.26266096,700.67,698.75,6.68702169]
[1735149700957,0.26266096,700.66,698.76,2.83734856]
[1735149701160,0.26266096,700.65,698.77,2.57531758]
[1735149701357,0.26266096,700.64,698.78,2.83734856]
[1735149701558,0.26266096,700.63,698.79,2.57531758]
[1735149701755,0.26266096,700.68,698.8,2.83734856]
[1735149702058,0.28543293,700.69,698.8,2.83734856]
[1735149702454,0.28543293,700.69,698.81,2.57531758]
[1735149702659,0.28543293,700.69,698.82,2.83734856]
[1735149702859,0.28543293,700.69,698.83,2.57531758]
[1735149703054,0.28543293,700.69,698.84,2.83734856]
[1735149703255,0.28543293,700.69,698.85,2.57531758]
[1735149703455,0.28543293,700.69,698.86,2.83734856]
[1735149703858,0.28543293,700.69,698.87,2.57531758]
[1735149704060,0.28543293,700.69,698.88,2.83734856]
[1735149704259,0.28543293,700.69,698.89,2.57531758]
[1735149704858,0.28543293,700.69,698.72,0.28623769]
[1735149705555,0.28543293,700.69,698.78,1.27435555]
[1735149707058,0.28543293,700.69,698.8,0.28620492]
[1735149708059,0.26263234,700.68,698.8,0.28620492]
[1735149708460,0.28544107,700.67,698.8,0.28620492]
[1735149708758,0.28544107,700.67,698.8,5.68980054]
[1735149708962,0.28544107,700.67,698.97,1.27435555]
[1735149709858,0.28544107,700.67,698.99,1.27435555]
[1735149711667,0.28544107,700.67,698.99,4.10263359]
[1735149711861,0.28544107,700.67,699.0,2.82827804]
[1735149712263,0.28544107,700.67,699.02,1.27435555]
[1735149712666,0.28544107,700.67,699.02,3.84967313]
[1735149712866,0.28544107,700.67,698.8,0.28620492]
[1735149712867,0.28544107,700.67,699.03,1.27435555]
[1735149713667,0.28544107,700.67,699.04,1.27435555]
[1735149713868,0.28544107,700.67,699.06,0.28609847]
[1735149714568,0.28544107,700.67,699.1,1.27435555]
[1735149715369,0.28544107,700.67,699.11,1.27435555]
[1735149716068,0.28544107,700.67,699.14,1.27435555]
[1735149716570,0.28544107,700.67,699.13,1.27435555]
[1735149717564,0.28544107,700.67,699.17,1.27435555]
[1735149718371,0.28544107,700.67,699.09,2.57531758]
[1735149718768,0.28544107,700.67,699.06,0.28609847]
[1735149735878,0.28544107,700.67,699.08,1.27435555]
[1735149736785,0.28544107,700.67,699.06,0.28609847]
[1735149743389,0.28544107,700.67,699.06,2.85450724]
[1735149743590,0.28544107,700.67,699.07,2.834725]
[1735149743788,0.28544107,700.67,699.08,2.56840877]
[1735149744189,0.28544107,700.67,699.06,0.28609847]
[1735149746391,0.28544107,700.67,699.13,1.27435555]
[1735149747486,0.28544107,700.67,699.14,1.27435555]
[1735149748489,0.28544107,700.67,699.12,1.27435555]
[1735149749092,0.28544107,700.67,699.12,6.68146064]
[1735149749293,0.28544107,700.67,699.13,2.8340139]
[1735149749594,0.28544107,700.67,699.38,1.27435555]
[1735149750396,0.28544107,700.67,699.37,1.27435555]
[1735149751296,0.28544107,700.67,699.36,5.40710509]
[1735149751497,0.28544107,700.67,699.37,2.8340139]
[1735149751692,0.28544107,700.67,699.37,5.40710509]
[1735149751896,0.28544107,700.67,699.38,5.40710509]
[1735149752094,0.28544107,700.67,699.39,2.8340139]
[1735149752295,0.28544107,700.67,699.39,5.69306857]
[1735149752492,0.28544107,700.67,699.4,5.40710509]
[1735149752699,0.28544107,700.67,699.4,2.57309119]
[1735149752899,0.28544107,700.67,699.39,0.28596348]
[1735149818548,1.06594966,701.95,699.39,0.28596348]
[1735149818751,0.26246195,701.94,699.39,0.28596348]
[1735149819150,0.28497335,701.82,699.39,0.28596348]
[1735149819454,0.26246195,701.81,699.39,0.28596348]
[1735149823256,0.26239482,701.8,699.39,0.28596348]
[1735149823452,0.28497335,701.82,699.39,0.28596348]
[1735149823753,0.26239282,701.81,699.39,0.28596348]
[1735149824550,0.26239282,701.8,699.39,0.28596348]
[1735149824856,0.26239282,701.79,699.39,0.28596348]
[1735149825156,0.26239282,701.78,699.39,0.28596348]
[1735149825355,0.26239282,701.77,699.39,0.28596348]
[1735149825658,0.26239282,701.76,699.39,0.28596348]
[1735149825956,0.26239282,701.75,699.39,0.28596348]
[1735149826258,0.26242361,701.74,699.39,0.28596348]
[1735149826454,0.26242361,701.73,699.39,0.28596348]
[1735149826651,0.26242361,701.72,699.39,0.28596348]
[1735149826954,0.26241567,701.71,699.39,0.28596348]
[1735149827151,0.26241567,701.7,699.39,0.28596348]
[1735149827351,0.26241567,701.69,699.39,0.28596348]
[1735149827557,0.26241567,701.68,699.39,0.28596348]
[1735149827755,0.26241567,701.67,699.39,0.28596348]
[1735149827952,0.26241567,701.66,699.39,0.28596348]
[1735149828152,0.26241567,701.65,699.39,0.28596348]
[1735149828351,1.06594966,701.8,699.39,0.28596348]
[1735149828352,0.26241567,701.64,699.39,0.28596348]
[1735149828556,0.26241567,701.63,699.39,0.28596348]
[1735149828754,0.26241567,701.62,699.39,0.28596348]
[1735149828954,0.26238935,701.61,699.39,0.28596348]
[1735149829154,0.26238935,701.6,699.39,0.28596348]
[1735149829357,0.26238935,701.59,699.39,0.28596348]
[1735149829556,0.26238935,701.58,699.39,0.28596348]
[1735149829856,0.26238935,701.57,699.39,0.28596348]
[1735149830057,0.26238935,701.56,699.39,0.28596348]
[1735149830258,0.26238935,701.55,699.39,0.28596348]
[1735149830457,0.26238935,701.54,699.39,0.28596348]
[1735149830651,0.26238935,701.53,699.39,0.28596348]
[1735149830852,0.26238935,701.52,699.39,0.28596348]
[1735149831058,0.26238935,701.51,699.39,0.28596348]
[1735149831258,0.26238935,701.5,699.39,0.28596348]
[1735149831458,0.26238935,701.49,699.39,0.28596348]
[1735149831655,0.26235445,701.48,699.39,0.28596348]
[1735149831854,0.26235445,701.47,699.39,0.28596348]
[1735149832058,0.26235445,701.46,699.39,0.28596348]
[1735149832260,0.26235445,701.45,699.39,0.28596348]
[1735149832564,0.26235445,701.44,699.39,0.28596348]
[1735149832759,0.28497335,701.82,699.39,0.28596348]
[1735149832956,0.26235614,701.81,699.39,0.28596348]
[1735149833861,0.26235614,701.81,699.39,2.85848722]
[1735149834063,0.26235614,701.81,699.39,0.28596348]
[1735149834264,0.26233713,701.8,699.39,0.28596348]
[1735149834562,0.26233713,701.79,699.39,0.28596348]
[1735149834764,0.26233713,701.78,699.39,0.28596348]
[1735149834964,0.26233713,701.77,699.39,0.28596348]
[1735149835165,0.26233613,701.76,699.39,0.28596348]
[1735149835464,0.26233613,701.75,699.39,0.28596348]
[1735149835659,0.26233613,701.74,699.39,0.28596348]
[1735149835861,0.26233613,701.73,699.39,0.28596348]
[1735149836065,0.26233613,701.72,699.39,0.28596348]
[1735149836363,0.26233613,701.71,699.39,0.28596348]
[1735149836565,0.26233613,701.7,699.39,0.28596348]
[1735149836761,0.28497335,701.82,699.39,0.28596348]
[1735149836964,0.26231316,701.81,699.39,0.28596348]
[1735149837164,0.26231306,701.8,699.39,0.28596348]
[1735149837367,0.28497335,701.82,699.39,0.28596348]
[1735149837368,0.26231306,701.79,699.39,0.28596348]
[1735149837564,0.26231306,701.78,699.39,0.28596348]
[1735149837767,0.28497335,701.82,699.39,0.28596348]
[1735149837964,0.26229492,701.81,699.39,0.28596348]
[1735149841668,0.26234799,701.8,699.39,0.28596348]
[1735149841868,0.26234799,701.79,699.39,0.28596348]
[1735149842066,0.26234799,701.78,699.39,0.28596348]
[1735149842270,0.26234799,701.77,699.39,0.28596348]
[1735149842463,0.26234177,701.76,699.39,0.28596348]
[1735149842663,0.26234177,701.75,699.39,0.28596348]
[1735149842862,0.26234177,701.74,699.39,0.28596348]
[1735149843069,0.26234177,701.73,699.39,0.28596348]
[1735149843264,0.26234177,701.72,699.39,0.28596348]
[1735149843469,0.26234177,701.71,699.39,0.28596348]
[1735149843663,0.26234177,701.7,699.39,0.28596348]
[1735149843867,0.26234177,701.69,699.39,0.28596348]
[1735149844171,0.26234177,701.68,699.39,0.28596348]
[1735149844363,0.28497335,701.82,699.39,0.28596348]
[1735149844567,0.26232281,701.81,699.39,0.28596348]
[1735149844766,0.26232281,701.8,699.39,0.28596348]
[1735149844965,0.26232281,701.79,699.39,0.28596348]
[1735149845161,0.26232281,701.78,699.39,0.28596348]
[1735149845363,0.26232281,701.77,699.39,0.28596348]
[1735149845562,0.26232281,701.76,699.39,0.28596348]
[1735149845766,0.26232281,701.75,699.39,0.28596348]
[1735149845968,0.26232281,701.74,699.39,0.28596348]
[1735149846271,0.26232281,701.73,699.39,0.28596348]
[1735149846469,0.26232281,701.72,699.39,0.28596348]
[1735149846769,0.26232281,701.71,699.39,0.28596348]
[1735149846971,0.26232281,701.7,699.39,0.28596348]
[1735149847172,0.26231877,701.69,699.39,0.28596348]
[1735149847469,0.26231877,701.68,699.39,0.28596348]
[1735149847664,0.26231877,701.67,699.39,0.28596348]
[1735149847968,0.26231877,701.66,699.39,1.56031903]
[1735149848169,0.26231877,701.65,699.39,1.56031903]
[1735149848363,0.26231877,701.64,699.39,1.56031903]
[1735149848569,0.28497335,701.82,699.39,0.28596348]
[1735149848769,0.26228171,701.81,699.39,0.28596348]
[1735149849167,0.26228171,701.81,699.39,3.09441944]
[1735149849369,0.26228171,701.81,699.41,1.27435555]
[1735149849765,0.26228171,701.81,699.41,4.08281151]
[1735149850070,0.26228171,701.81,699.54,1.27435555]
[1735149850663,0.26223478,701.8,699.54,1.27435555]
[1735149850868,0.26223478,701.79,699.54,1.27435555]
[1735149851064,0.26223478,701.78,699.67,1.27435555]
[1735149851268,0.26223478,701.77,699.67,1.27435555]
[1735149851570,0.26223478,701.76,699.67,1.27435555]
[1735149851770,0.26223478,701.75,699.63,1.27435555]
[1735149851965,0.26223478,701.74,699.63,1.27435555]
[1735149852268,0.26223478,701.73,699.63,1.27435555]
[1735149852467,0.26223478,701.72,699.63,1.27435555]
[1735149852770,0.28497335,701.82,699.62,2.57252374]
[1735149852771,0.28497335,701.82,699.62,1.27435555]
[1735149853172,0.28497335,701.82,699.52,2.57252374]
[1735149853673,0.28497335,701.82,699.53,2.57252374]
[1735149854172,0.28497335,701.82,699.35,1.27435555]
[1735149854774,0.28497335,701.82,699.34,1.27435555]
[1735149855375,0.28497335,701.82,699.33,1.27435555]
[1735149855674,0.26224441,701.81,699.33,1.27435555]
[1735149855877,0.26224441,701.81,699.31,5.36792898]
[1735149856174,0.26224441,701.81,699.32,5.36792898]
[1735149856374,0.26224441,701.81,699.33,2.79540524]
[1735149856571,0.26224441,701.81,699.33,5.36792898]
[1735149856772,0.26224441,701.81,699.4,1.27435555]
[1735149857373,0.26224441,701.81,699.37,2.79540524]
[1735149857575,0.26224441,701.81,699.37,5.36792898]
[1735149857775,0.26224441,701.81,699.38,2.79540524]
[1735149857975,0.28497335,701.82,699.39,2.85848722]
[1735149858172,0.26227126,701.81,699.4,2.79540524]
[1735149858679,0.26227126,701.81,699.41,2.57252374]
[1735149858979,0.26226638,701.8,699.42,2.79540524]
[1735149859175,0.26226638,701.79,699.42,2.79540524]
[1735149859480,0.26226638,701.78,699.43,2.57252374]
[1735149859680,0.26226638,701.77,699.44,2.79540524]
[1735149859878,0.26226638,701.76,699.44,2.79540524]
[1735149860078,0.26226638,701.75,699.45,2.57252374]
[1735149860278,0.26226638,701.74,699.46,2.79540524]
[1735149860480,0.26226638,701.73,699.47,2.57252374]
[1735149860780,0.26226638,701.72,699.48,2.79540524]
[1735149861082,0.26227442,701.71,699.48,2.79540524]
[1735149861281,0.26227442,701.7,699.49,2.57252374]
[1735149861483,0.26227442,701.69,699.5,2.79540524]
[1735149861680,0.26227442,701.68,699.5,2.79540524]
[1735149861882,0.26227442,701.67,699.6,0.28587764]
[1735149862079,0.26227442,701.66,699.6,0.28587764]
[1735149862281,0.26227442,701.65,699.6,0.28587764]
[1735149862483,0.26227442,701.64,699.6,0.28587764]
[1735149862681,0.28497335,701.82,699.6,0.28587764]
[1735149862983,0.26227429,701.81,699.6,0.28587764]
[1735149864579,1.06594966,701.79,699.6,0.28587764]
[1735149864785,0.26227429,701.78,699.6,0.28587764]
[1735149864983,0.28499772,701.76,699.6,0.28587764]
[1735149865283,1.32822395,701.75,699.6,0.28587764]
[1735149865481,0.26227429,701.74,699.6,0.28587764]
[1735149866085,1.06594966,701.66,699.6,0.28587764]
[1735149866383,0.26239154,701.65,699.6,0.28587764]
[1735149867185,1.06594966,701.63,699.6,0.28587764]
[1735149867378,0.26240228,701.62,699.6,0.28587764]
[1735149868580,1.06594966,701.68,699.6,0.28587764]
[1735149868581,0.26240228,701.61,699.6,0.28587764]
[1735149868786,0.26240228,701.6,699.6,0.28587764]
[1735149868984,0.26240228,701.59,699.6,0.28587764]
[1735149869286,0.26240228,701.58,699.6,0.28587764]
[1735149869487,0.26240228,701.57,699.6,0.28587764]
[1735149869681,1.06594966,701.65,699.6,0.28587764]
[1735149869682,0.26240228,701.56,699.6,0.28587764]
[1735149869881,0.26240228,701.55,699.6,0.28587764]
[1735149870086,0.26240228,701.54,699.6,0.28587764]
[1735149870287,0.26240228,701.53,699.6,0.28587764]
[1735149870486,0.26240228,701.52,699.6,0.28587764]
[1735149870687,0.26240228,701.51,699.6,0.28587764]
[1735149870881,0.26240228,701.5,699.6,0.28587764]
[1735149871086,0.26240228,701.49,699.6,0.28587764]
[1735149871286,0.26240228,701.48,699.6,0.28587764]
[1735149871587,0.26240228,701.47,699.6,0.28587764]
[1735149871789,0.28499772,701.76,699.6,0.28587764]
[1735149871989,0.26240233,701.75,699.6,0.28587764]
[1735149874687,0.26239889,701.74,699.6,0.28587764]
[1735149874888,0.26239889,701.73,699.6,0.28587764]
[1735149875088,0.26239889,701.72,699.6,0.28587764]
[1735149875289,0.28499772,701.76,699.6,0.28587764]
[1735149875489,0.2623984,701.75,699.6,0.28587764]
[1735149876287,0.2850424,701.65,699.6,0.28587764]
[1735149876483,0.2623984,701.64,699.6,0.28587764]
[1735149877088,0.28508709,701.54,699.6,0.28587764]
[1735149877288,0.2623984,701.53,699.6,0.28587764]
[1735149877591,0.26245259,701.53,699.6,0.28587764]
[1735149882895,0.26246986,701.52,699.6,0.28587764]
[1735149883094,0.26246986,701.51,699.6,0.28587764]
[1735149883294,0.26246986,701.5,699.6,0.28587764]
[1735149883490,0.26246986,701.49,699.6,0.28587764]
[1735149883694,0.26246645,701.48,699.6,0.28587764]
[1735149883997,0.26246645,701.47,699.6,0.28587764]
[1735149884197,0.26246645,701.46,699.6,0.28587764]
[1735149884496,0.26246645,701.45,699.6,0.28587764]
[1735149884691,0.26246645,701.44,699.6,0.28587764]
[1735149884889,0.26246645,701.43,699.6,0.28587764]
[1735149885093,0.26246645,701.42,699.6,0.28587764]
[1735149885293,0.26246645,701.41,699.6,0.28587764]
[1735149885491,0.28508709,701.54,699.6,0.28587764]
[1735149885702,0.26253587,701.53,699.6,0.28587764]
[1735149888192,0.28508709,701.54,699.6,0.28587764]
[1735149888496,0.26253888,701.53,699.6,0.28587764]
[1735149888699,0.26253888,701.52,699.6,0.28587764]
[1735149888892,0.26253888,701.51,699.6,0.28587764]
[1735149889196,0.26253888,701.5,699.6,0.28587764]
[1735149889390,0.26253888,701.49,699.6,0.28587764]
[1735149889697,0.26253888,701.48,699.6,0.28587764]
[1735149889893,0.26253888,701.47,699.6,0.28587764]
[1735149890091,0.26253888,701.46,699.6,0.28587764]
[1735149890299,0.26253888,701.45,699.6,0.28587764]
[1735149890493,0.26253888,701.44,699.6,0.28587764]
[1735149890694,0.28508709,701.54,699.6,0.28587764]
[1735149890695,0.26253888,701.43,699.6,0.28587764]
[1735149890894,0.26253888,701.42,699.6,0.28587764]
[1735149891093,0.26253282,701.41,699.6,0.28587764]
[1735149891399,0.26253282,701.4,699.6,0.28587764]
[1735149891600,0.26253282,701.39,699.6,0.28587764]
[1735149891800,0.26252789,701.38,699.6,0.28587764]
[1735149892000,0.26252789,701.37,699.6,0.28587764]
[1735149892201,0.26252789,701.36,699.6,0.28587764]
[1735149892397,0.26252789,701.35,699.6,0.28587764]
[1735149892595,0.26252789,701.34,699.6,0.28587764]
[1735149892797,0.26252789,701.33,699.6,0.28587764]
[1735149892995,0.26252789,701.32,699.6,0.28587764]
[1735149893201,0.26252789,701.31,699.6,0.28587764]
[1735149893501,0.26252789,701.3,699.6,0.28587764]
[1735149893698,0.26252789,701.29,699.6,0.28587764]
[1735149893895,0.26252789,701.28,699.6,0.28587764]
[1735149894200,0.26252789,701.27,699.6,0.28587764]
[1735149894399,0.26252789,701.26,699.6,0.28587764]
[1735149894596,0.26252789,701.25,699.6,0.28587764]
[1735149894796,0.26252789,701.24,699.6,0.28587764]
[1735149895000,0.26252789,701.23,699.6,0.28587764]
[1735149895197,0.26252789,701.22,699.6,0.28587764]
[1735149895500,0.26252789,701.21,699.6,0.28587764]
[1735149895700,0.26252789,701.2,699.6,0.28587764]
[1735149896001,0.26252789,701.19,699.6,0.28587764]
[1735149896202,0.26252789,701.18,699.6,0.28587764]
[1735149896502,0.26252789,701.17,699.6,0.28587764]
[1735149896702,0.26252789,701.5,699.6,0.28587764]
[1735149896905,1.06594966,701.47,699.6,0.28587764]
[1735149897101,0.26252789,701.46,699.6,0.28587764]
[1735149897700,0.26252789,701.45,699.6,0.28587764]
[1735149897900,0.26252789,701.44,699.6,0.28587764]
[1735149898100,0.26252789,701.43,699.6,0.28587764]
[1735149898298,0.26252789,701.42,699.6,0.28587764]
[1735149898503,0.26252789,701.41,699.6,0.28587764]
[1735149898704,0.26252789,701.4,699.6,0.28587764]
[1735149898905,1.06594966,701.42,699.6,0.28587764]
[1735149899199,0.26252789,701.41,699.6,0.28587764]
[1735149899403,0.26247793,701.4,699.6,0.28587764]
[1735149899599,0.26247793,701.39,699.6,0.28587764]
[1735149899805,0.26247793,701.38,699.6,0.28587764]
[1735149900001,0.26247793,701.37,699.6,0.28587764]
[1735149900199,0.26247819,701.36,699.6,0.28587764]
[1735149900405,0.26247819,701.35,699.6,0.28587764]
[1735149900605,0.26247819,701.34,699.6,0.28587764]
[1735149900804,0.26247819,701.33,699.6,0.28587764]
[1735149901106,0.26247819,701.32,699.6,0.28587764]
[1735149901305,0.26247819,701.43,699.6,0.28587764]
[1735149901506,1.06594966,701.4,699.6,0.28587764]
[1735149901902,0.26247819,701.39,699.6,0.28587764]
[1735149902102,1.06594966,701.34,699.6,0.28587764]
[1735149902402,0.26247819,701.33,699.6,0.28587764]
[1735149903305,0.26247819,701.32,699.6,0.28587764]
[1735149903507,0.26247819,701.31,699.6,0.28587764]
[1735149903806,0.26247819,701.3,699.6,0.28587764]
[1735149904007,1.06594966,701.34,699.6,0.28587764]
[1735149904207,0.26247807,701.33,699.6,0.28587764]
[1735149904707,1.06594966,701.28,699.6,0.28587764]
[1735149905006,0.26247807,701.27,699.6,0.28587764]
[1735149905206,1.06594966,701.23,699.6,0.28587764]
[1735149905410,0.26247807,701.22,699.6,0.28587764]
[1735149906007,1.06594966,701.21,699.6,0.28587764]
[1735149906307,0.26247807,701.2,699.6,0.28587764]
[1735149906704,1.06594966,701.21,699.6,0.28587764]
[1735149906904,0.26249159,701.2,699.6,0.28587764]
[1735149907504,1.06594966,701.22,699.6,0.28587764]
[1735149907711,0.26249127,701.21,699.6,0.28587764]
[1735149908405,1.06594966,701.17,699.6,0.28587764]
[1735149908605,0.28524566,701.15,699.6,0.28587764]
[1735149908810,0.26249127,701.14,699.6,0.28587764]
[1735149909513,0.26249058,701.13,699.6,0.28587764]
[1735149909708,0.26249035,701.12,699.6,0.28587764]
[1735149909907,0.26249035,701.11,699.6,0.28587764]
[1735149910109,1.06594966,701.09,699.6,0.28587764]
[1735149910310,0.26249035,701.08,699.6,0.28587764]
[1735149910810,1.06594966,701.07,699.6,0.28587764]
[1735149911006,0.26249035,701.06,699.6,0.28587764]
[1735149911606,1.32844001,701.06,699.6,0.28587764]
[1735149911911,0.28529042,701.04,699.6,0.28587764]
[1735149912111,0.26249035,701.03,699.6,0.28587764]
[1735149912308,0.28529856,701.02,699.6,0.28587764]
[1735149912513,0.26249035,701.01,699.6,0.28587764]
[1735149912715,0.2853067,701.0,699.6,0.28587764]
[1735149912914,0.26249035,700.99,699.6,0.28587764]
[1735149913316,0.2853067,701.0,699.6,0.28587764]
[1735149913616,0.28531484,700.98,699.6,0.28587764]
[1735149937235,0.26254028,700.97,699.6,0.28587764]
[1735149939644,0.26255442,700.96,699.6,0.28587764]
[1735149939843,0.26255442,700.95,699.6,0.28587764]
[1735149940038,0.28531484,700.98,699.6,0.28587764]